Workbook

Sheet Recap
A1: SARE / St Auban RECAPITULATIF
B4: Stock : | C4: 2018-01-03
A7: Supports | B7: Cat 2 | C7: =Supports!A7 -> 4890.68
A8: Ligne | B8: Cat 2 | C8: =Ligne!A7 -> 146292.68
A9: Photovoltaique | B9: Cat 3 | C9: =Photovoltaique!A7 -> 142046.0452
A10: EP | B10: Cat 4 | C10: =EP!B7 -> 26220.4
A11: Colonnes | B11: Cat 6
A12: Frejus | B12: Cat 2 | C12: =Frejus!A7 -> 9300.85
A13: TOTAL | C13: =SUM(C7:F12) -> 328750.6552

Sheet Photovoltaique
B1: SARE / St Auban Local Photovoltaique
A4: Date : | B4: 2018-01-03
A6: Total
A7: =SUMIF(I13:I569,3,H13:H569) -> 142046.0452
A10: Ref Magasin | B10: Articles | C10: Unité | D10: Entrée | E10: Sorti | F10: Q | G10: PU | H10: TOTAL HT | I10: Cat. | J10: Seuil critique | K10: Référence fournisseur | S10: ARTICLES | T10: Q | V10: Comparatif Q
A11: Câbles
A12: Fils Cuivre
A13: HO7VK
A14: CABVKR | B14: H07 VK 1x2,5 Rouge | C14: ml | D14: 80 | F14: =D14-E14 -> 80 | G14: 0.37 | H14: =G14*F14 -> 29.6 | I14: 3
A15: CABVKM | B15: H07 VK 1x2,5 Marron | C15: ml | D15: 10 | F15: =D15-E15 -> 10 | G15: 0.37 | H15: =G15*F15 -> 3.7 | I15: 3
A16: CABVKN | B16: H07 VK 1x2,5 Noir | C16: ml | D16: 50 | F16: 50 | G16: 0.37 | H16: 18.5 | I16: 3
A17: CABVKB | B17: H07 VK 1x2,5 Bleu | C17: ml | D17: 40 | F17: 40 | G17: 0.37 | H17: 14.8 | I17: 3
A18: CABVKB | B18: H07 VK 1x4 Bleu | C18: ml | F18: 0 | H18: 0 | I18: 3
A19: CABVKN | B19: H07 VK 1x4 Noir | C19: ml | F19: 0 | H19: 0 | I19: 3
A20: CABVKB | B20: H07 VK 1x6 Bleu | C20: ml | D20: 400 | F20: 400 | G20: 0.87 | H20: 348 | I20: 3
A21: CABVKN | B21: H07 VK 1x6 Noir | C21: ml | D21: 100 | F21: 100 | G21: 0.87 | H21: 87 | I21: 3
A22: CABVKM | B22: H07 VK 1x6 Marron | C22: ml | D22: 80 | F22: 80 | G22: 0.87 | H22: 69.6 | I22: 3
A23: CABVKJ | B23: H07 VK 1x6 V/J | C23: ml | F23: 0 | G23: 0.87 | H23: 0 | I23: 3
A24: CABVKN | B24: H07 VK 1x10 Noir | C24: ml | F24: 0 | H24: 0 | I24: 3
A25: CABVKB | B25: H07 VK 1x10 Bleu | C25: ml | F25: 0 | H25: 0 | I25: 3
A26: CABVKR | B26: H07 VK 1x10 Rouge | C26: ml | F26: 0 | H26: 0 | I26: 3
A27: CABVKN | B27: H07 VK 1x16 Noir | C27: ml | D27: 30 | F27: 30 | H27: 0 | I27: 3
A28: VR
A29: CABVKR | B29: H07 VR 1x6 Rouge | C29: ml | D29: 0 | F29: 0 | H29: 0 | I29: 3
A30: CABVKB | B30: H07 VR 1x6 Bleu | C30: ml | F30: 0 | H30: 0 | I30: 3
A31: CABVKB | B31: H07 VR 1x10 Bleu | C31: ml | D31: 20 | F31: 20 | G31: 0.865 | H31: 17.3 | I31: 3
A32: CABVKR | B32: H07 VR 1x10 Rouge | C32: ml | D32: 2500 | F32: 2500 | G32: 0.865 | H32: 2162.5 | I32: 3
A33: HO7RNF
A34: CABCu | B34: H07 Cu 1x95 | C34: ml | F34: 0 | H34: 0 | I34: 3
A35: CABCu | B35: H07 Cu 1x95 | C35: ml | D35: 60 | F35: 60 | H35: 0 | I35: 3
A36: CABCu | B36: H07 Cu 1x185 | C36: ml | D36: 15 | F36: 15 | G36: 17.5 | H36: 262.5 | I36: 3
A37: CABCu | B37: H07 Cu 1x300 | C37: ml | F37: 0 | G37: 32 | H37: 0 | I37: 3
A39: Câbles Cuivre
A40: RO2V
A41: CABCUV | B41: RO2V 1x95 | C41: ml | D41: 65 | F41: =D41-E41 -> 65 | H41: =G41*F41 -> 0 | I41: 3
A42: CABCUV | B42: RO2V 1x120 | C42: ml | D42: 20 | F42: 20 | H42: 0 | I42: 3
A43: CABCUV | B43: RO2V 1x240 | C43: ml | D43: 27 | F43: 27 | H43: 0 | I43: 3
A44: CABCUV | B44: RO2V 2x1,5 | C44: ml | F44: 0 | G44: 0.32 | H44: 0 | I44: 3
A45: CABCUV | B45: RO2V 3G1,5 | C45: ml | D45: 0 | F45: 0 | G45: 0.37 | H45: =G45*F45 -> 0 | I45: 8
A46: CABCUV | B46: RO2V 5G1,5 | C46: ml | D46: 200 | F46: 200 | G46: 0.6 | H46: 120 | I46: 3
A47: CABCUV | B47: RO2V 7G1,5 | C47: ml | D47: 500 | F47: =D47-E47 -> 500 | G47: 1.037 | H47: 518.5 | I47: 3 | K47: 1340
A48: CABCUV | B48: RO2V 12G1,5 | C48: ml | D48: 800 | F48: 800 | G48: 1.679 | H48: 1343.2 | I48: 3 | K48: 1340
A49: CABCUV | B49: RO2V 3G2,5 | C49: ml | D49: 100 | F49: 100 | G49: 0.58 | H49: 58 | I49: 3
A50: CABCUV | B50: RO2V 2x4 | C50: ml | E50: 0 | F50: 0 | G50: 0 | H50: 0 | I50: 3
A51: CABCUV | B51: RO2V 3G4 | C51: ml | D51: 100 | F51: 100 | G51: 1.04 | H51: 104 | I51: 3
A52: CABCUV | B52: RO2V 5G4 | C52: ml | D52: 50 | F52: 50 | G52: 0.59 | H52: 29.5 | I52: 3
A53: CABCUV | B53: RO2V 3G6 | C53: ml | D53: 100 | F53: 100 | G53: 1.5 | H53: 150 | I53: 3
A54: CABCUV | B54: RO2V 5G6 | C54: ml | D54: 0 | F54: 0 | G54: 2.4 | H54: 0 | I54: 3
A55: CABCUV | B55: RO2V 2x10 | C55: ml | D55: 500 | F55: 500 | G55: 1.7 | H55: 850 | I55: 3
A56: CABCUV | B56: RO2V 3G10 | C56: ml | F56: 0 | G56: 2.5 | H56: 0 | I56: 3
A57: CABCUV | B57: RO2V 4x10 | C57: ml | D57: 50 | F57: 50 | G57: 3.157 | H57: 157.85 | I57: 3
A58: CABCUV | B58: RO2V 4G10 | C58: ml | F58: 0 | G58: 11.7 | H58: 0 | I58: 3
A59: CABCUV | B59: RO2V 5G10 | C59: ml | D59: 0 | F59: 0 | G59: 3.64 | H59: 0 | I59: 3
A60: CABCUV | B60: RO2V 2x16 | C60: ml | D60: 83 | F60: 83 | G60: 2.6 | H60: 215.8 | I60: 3
A61: CABCUV | B61: RO2V 3G16 | C61: ml | F61: 0 | G61: 10.63 | H61: 0 | I61: 3
A62: CABCUV | B62: RO2V 4x16 | C62: ml | D62: 50 | F62: 50 | G62: 4.7 | H62: 235 | I62: 3
A63: CABCUV | B63: RO2V 4G16 | C63: ml | F63: 0 | G63: 11.7 | H63: 0 | I63: 3
A64: CABCUV | B64: RO2V 5G16 | C64: ml | D64: 24 | F64: 24 | G64: 5.8 | H64: 139.2 | I64: 3
A65: CABCUV | B65: RO2V 2x25 | C65: ml | D65: 50 | F65: 50 | G65: 6.86 | H65: 343 | I65: 3
A66: CABCUV | B66: RO2V 4x25 | C66: ml | D66: 0 | F66: 0 | G66: 7.4 | H66: 0 | I66: 3
A67: CABCUV | B67: RO2V 5G25 | C67: ml | D67: 23 | F67: 23 | G67: 9.4 | H67: 216.2 | I67: 3 | J67: 20
A68: CABCUV | B68: RO2V1X35 | C68: ml | D68: 120 | F68: 120 | G68: 0.98 | H68: 117.6 | I68: 3
A69: CABCUV | B69: RO2V 4x35 | C69: ml | D69: 0 | F69: 0 | G69: 7.4 | H69: 0 | I69: 3
A70: CABCUV | B70: RO2V 5G35 | C70: ml | F70: 0 | G70: 13.8 | H70: 0 | I70: 3 | J70: 20
A71: CABCUV | B71: RO2V 4x70 | C71: ml | F71: 0 | H71: 0 | I71: 3
A73: RVFV
A74: CABCUV | B74: RVFV 5G4 | C74: ml | D74: 80 | F74: =D74-E74 -> 80 | G74: 2.85 | H74: =G74*F74 -> 228 | I74: 3
A75: CABCUV | B75: RVFV 5G6 | C75: ml | F75: 0 | G75: 3.8 | H75: 0 | I75: 3
A77: Terre
B78: Cablette nue
A79: CABTER | B79: Cablette de terre 6² Cu | C79: ml | F79: =D79-E79 -> 0 | G79: 0.98 | H79: =F79*G79 -> 0 | I79: 3
A80: CABTER | B80: Cablette de terre 16² Cu | C80: ml | D80: 2200 | F80: =D80-E80 -> 2200 | G80: 1.388 | H80: =F80*G80 -> 3053.6 | I80: 3 | J80: 400
B81: RO2V isolé
A82: CAVEJA | B82: RO2V 6mm² vert jaune | C82: ml | D82: 1200 | F82: =D82-E82 -> 1200 | G82: 0.42 | H82: =F82*G82 -> 504 | I82: 3 | J82: 1000
A84: Photovoltaique
B85: Anti feu
A86: CABCUV | B86: CR1-C1 3G1,5 | C86: ml | D86: 130 | F86: =D86-E86 -> 130 | G86: 0.7 | H86: =F86*G86 -> 91 | I86: 3
A87: CABCUV | B87: CR1-C1 4G1,5 | C87: ml | D87: 60 | F87: 60 | G87: 0.88 | H87: 52.8 | I87: 3
B88: Câble DC
A89: CABTWI | B89: Solarplast Twin 2x6mm | C89: ml | D89: 17450 | F89: 17450 | G89: 1.3 | H89: 22685 | I89: 3 | J89: 5000
A90: CABPHO | B90: Cable photovoltaique 1x6mm | C90: ml | D90: 41500 | F90: 41500 | G90: 0.54 | H90: 22410 | I90: 3 | J90: 5000
A91: CABMON | B91: Catégorie7 4P monitoring Anti UV | C91: ml | D91: 2000 | F91: 2000 | G91: 0.98 | H91: 1960 | I91: 3 | J91: 1000
A92: CABTWI | B92: Twin 2x10 | C92: ml | D92: 14000 | F92: 14000 | G92: 0 | H92: 0 | I92: 3
A94: ALU
A95: CABALU | B95: U1000 ARO2V 1x50 | C95: ml | D95: 83 | F95: =D95-E95 -> 83 | G95: 0.65 | H95: =F95*G95 -> 53.95 | I95: 3
A96: CABALU | B96: U1000 ARO2V 1x70 | C96: ml | D96: 150 | F96: 150 | G96: 0.881 | H96: 132.15 | I96: 3
A97: CABALU | B97: U1000 ARO2V 1x95 | C97: ml | D97: 30 | F97: 30 | G97: 1.1 | H97: 33 | I97: 3
A98: CABALU | B98: U1000 ARO2V 1x 120 | C98: ml | F98: 0 | G98: 1.52 | H98: 0 | I98: 3
A99: CABALU | B99: U1000 ARO2V 1x150 | C99: ml | D99: 793 | F99: 793 | G99: 1.8 | H99: 1427.4 | I99: 3
A100: CABALU | B100: U1000 ARO2V 1x185 | C100: ml | F100: 0 | G100: 1.95 | H100: 0 | I100: 3
A101: CABALU | B101: U1000 ARO2V 1x240 | C101: ml | F101: 0 | G101: 2.73 | H101: 0 | I101: 3
A102: CABALU | B102: U1000 ARO2V 1x300 | C102: ml | F102: 0 | G102: 3.7 | H102: 0 | I102: 3
A103: CABALU | B103: U1000 ARO2V 4x35 | C103: ml | F103: 0 | G103: 2.57 | H103: 0 | I103: 3
A104: CABALU | B104: U1000 ARO2V 4x50 | C104: ml | F104: 0 | G104: 4.58 | H104: 0 | I104: 3
A105: CABALU | B105: U1000 ARO2V 4x70 | C105: ml | D105: 10 | F105: 10 | G105: 4.36 | H105: 43.6 | I105: 3
A106: CABALU | B106: U1000 ARO2V 4x95 | C106: ml | F106: 0 | G106: 5.91 | H106: 0 | I106: 3
A107: CABALU | B107: U1000 ARO2V 3x150+70 | C107: ml | D107: 67 | F107: 67 | G107: 8.85 | H107: 592.95 | I107: 3
A108: CABALU | B108: U1000 ARO2V 4x150 | C108: ml | F108: 0 | G108: 8.85 | H108: 0 | I108: 3
A109: CABALU | B109: U1000 ARO2V 4x185 | C109: ml | F109: 0 | G109: 11 | H109: 0 | I109: 3
A110: CABALU | B110: U1000 ARO2V 3x240+95 | C110: ml | D110: 170 | F110: 170 | G110: 13.99 | H110: 2378.3 | I110: 3
A111: CABALU | B111: U1000 ARO2V 4x240 | C111: ml | F111: 0 | G111: 13.99 | H111: 0 | I111: 3
A113: Torsadé
A114: CABTWI | B114: Twistal 4x95 Alu | C114: ml | F114: =D114-E114 -> 0 | G114: 7.1 | H114: =F114*G114 -> 0 | I114: 3
A115: CABTOR | B115: ARO2V torsadé 4x95 | C115: ml | F115: 0 | G115: 4.82 | H115: 0 | I115: 3
A116: CABTOR | B116: ARO2V torsadé 4x185 | C116: ml | F116: 0 | G116: 9.2 | H116: 0 | I116: 3
A117: CABTOR | B117: ARO2V torsadé 4x240 | C117: ml | F117: 0 | G117: 11.66 | H117: 0 | I117: 3
A119: Fixations
A120: SNACLI | B120: SNAP CLIP 22/32 | C120: U | D120: 80 | F120: =D120-E120 -> 80 | G120: 0.2 | H120: =F120*G120 -> 16 | I120: 3
A121: SNACLI | B121: SNAP 15/18 | C121: U | D121: 4500 | F121: 4500 | G121: 0.2 | H121: 900 | I121: 3
A122: SNACLI | B122: SNAP 10/14 | C122: U | D122: 200 | F122: 200 | G122: 0.2 | H122: 40 | I122: 3
A123: SNACLI | B123: SNAP 19/24 | C123: U | D123: 50 | F123: 50 | G123: 0.2 | H123: 10 | I123: 3
A124: SNACLI | B124: SNAP 12/14 | C124: U | D124: 20 | F124: 20 | G124: 0.2 | H124: 4 | I124: 3
A125: CLISOL | B125: Clips Solar | C125: U | D125: 400 | F125: 400 | G125: 0.2 | H125: 80 | I125: 3
A126: COLRIS | B126: Colliers Rislans 2,5x100 anti UV | C126: U | D126: 62000 | F126: =D126-E126 -> 62000 | G126: 0.0028 | H126: =F126*G126 -> 173.6 | I126: 3 | J126: 2000
A127: COLRIS | B127: Colliers Rislans 3,6x200 anti UV | C127: U | D127: 92000 | F127: 92000 | G127: =0.0105 -> 0.0105 | H127: 966 | I127: 3 | J127: 2000
A128: COLRIS | B128: Colliers Rislans 7,6x300 anti UV | C128: U | D128: 16000 | F128: 16000 | G128: 0.042 | H128: 672 | I128: 3 | J128: 2000
A129: EMRIVI | B129: Embases colliers Rilsan à visser | C129: U | H129: 0 | I129: 3
A130: EMRIFR | B130: Embases colliers Rilsan à frapper | C130: U | H130: 0 | I130: 3
A131: EMRISP | B131: Embases colliers Rilsan cloueur spit | C131: U | H131: 0 | I131: 3
A134: Connectiques
A135: Photovoltaiques
B136: MC4
A137: CONMAL | B137: Connectiques MC4 Males à encastrer | C137: U | D137: 200 | F137: =D137-E137 -> 200 | G137: 0.89 | H137: =F137*G137 -> 178 | I137: 3 | J137: 100
A138: CONFEM | B138: Connectiques MC4 Femelles à encastrer | C138: U | D138: 300 | F138: 300 | G138: 1.18 | H138: 354 | I138: 3 | J138: 100
A139: CONMAL | B139: Connectiques MC4 Males | C139: U | D139: 1900 | F139: 1900 | G139: 0.89 | H139: 1691 | I139: 3 | J139: 200
A140: CONFEM | B140: Connectiques MC4 Femelles | C140: U | D140: 1900 | F140: 1900 | G140: 1.18 | H140: 2242 | I140: 3 | J140: 200
B141: EVO
A142: CONMAL | B142: Connectiques H4 Males EVO | C142: U | D142: 380 | F142: 380 | G142: 1.02 | H142: 387.6 | I142: 3 | J142: 200
A143: CONFEM | B143: Connectiques H4 Femelles EVO | C143: U | D143: 440 | F143: 440 | G143: 1.36 | H143: 598.4 | I143: 3 | J143: 200
B144: Huber Sunher
A145: CONMAL | B145: Huber Sunher Males | C145: U | D145: 1250 | F145: 1250 | G145: 1.35 | H145: 1687.5 | I145: 3 | J145: 200
A146: CONFEM | B146: Huber Sunher Femelles | C146: U | D146: 1250 | F146: 1250 | G146: 1.25 | H146: 1562.5 | I146: 3 | J146: 200
B147: Yukita
A148: CONMAL | B148: Yukita Males | C148: U | D148: 1100 | F148: 1100 | G148: 0.92 | H148: 1012 | I148: 3 | J148: 200
A149: CONFEM | B149: Yukita Femelles | C149: U | D149: 1050 | F149: 1050 | G149: 0.92 | H149: 966 | I149: 3 | J149: 200
A150: CONMAL | B150: Rallonges Yukita Males / MC4 | C150: U | D150: 1190 | F150: =D150-E150 -> 1190 | G150: 1.5 | H150: =F150*G150 -> 1785 | I150: 3
A151: CONFEM | B151: Rallonges Yukita Femelles / MC4 | C151: U | D151: 1150 | F151: 1150 | G151: 1.5 | H151: 1725 | I151: 3
B152: Tyco
A153: CONMAL | B153: Tyco PV4 Males | C153: U | D153: 1900 | F153: 1900 | G153: 1.02 | H153: 1938 | I153: 3 | J153: 200
A154: CONFEM | B154: Tyco PV4 Femelles | C154: U | D154: 1600 | F154: 1600 | G154: 1.02 | H154: 1632 | I154: 3 | J154: 200
B155: Amphenol
A156: CONFEM | B156: AMPHENOL FEMELLE 4/6MM | C156: U | D156: 1100 | F156: 1100 | I156: 3
A157: CONMAL | B157: AMPHENOL MALE 4/6MM | C157: U | D157: 1100 | F157: 1100 | I157: 3
A159: Cosses
B160: Cuivre à sertissage
A161: COSCUI | B161: COSSE XCT 6/6 | C161: U | D161: 205 | F161: =D161-E161 -> 205 | G161: 0.1921 | H161: =F161*G161 -> 39.3805 | I161: 3 | J161: 100
A162: COSCUI | B162: COSSE XCT 6/8 | C162: U | D162: 857 | F162: 857 | G162: 0.1921 | H162: 164.6297 | I162: 3 | J162: 100
A163: COSCUI | B163: COSSE XCT 10/6 | C163: U | D163: 4 | F163: 4 | G163: 0.13 | H163: 0.52 | I163: 3 | J163: 8
A164: COSCUI | B164: COSSE XCT 10/8 | C164: U | D164: 165 | F164: 165 | G164: 0.13 | H164: 21.45 | I164: 3 | J164: 8
A165: COSCUI | B165: COSSE XCT 16/8 | C165: U | D165: 790 | F165: 790 | G165: 0.23 | H165: 181.7 | I165: 3 | J165: 8
A166: COSCUI | B166: COSSE XCT 16/10 | C166: U | D166: 232 | F166: 232 | G166: 0.23 | H166: 53.36 | I166: 3 | J166: 100
A167: COSCUI | B167: COSSE XCT 25/6 | C167: U | D167: 209 | F167: 209 | G167: 0.34 | H167: 71.06 | I167: 3 | J167: 8
A168: COSCUI | B168: COSSE XCT 25/8 | C168: U | D168: 331 | F168: 331 | G168: 0.34 | H168: 112.54 | I168: 3 | J168: 8
A169: COSCUI | B169: COSSE XCT 25/10 | C169: U | D169: 303 | F169: 303 | G169: 0.34 | H169: 103.02 | I169: 3 | J169: 8
A170: COSCUI | B170: COSSE XCT 35/6 | C170: U | D170: 48 | F170: 48 | H170: 0 | I170: 3
A171: COSCUI | B171: COSSE XCT 35/8 | C171: U | D171: 18 | F171: 18 | G171: 0.16 | H171: 2.88 | I171: 3 | J171: 8
A172: COSCUI | B172: COSSE XCT 35/10 | C172: U | D172: 60 | F172: 60 | G172: 0.16 | H172: 9.6 | I172: 3 | J172: 8
A173: COSCUI | B173: COSSE XCT 50/12 | C173: U | D173: 58 | F173: 58 | G173: 0.16 | H173: 9.28 | I173: 3 | J173: 8
A174: COSCUI | B174: COSSE XCT 70/8 | C174: U | D174: 66 | F174: 66 | G174: 0.16 | H174: 10.56 | I174: 3 | J174: 8
A175: COSCUI | B175: COSSE XCT 70/10 | C175: U | D175: 38 | F175: 38 | G175: 0.16 | H175: 6.08 | I175: 3 | J175: 8
A176: COSCUI | B176: COSSE XCT 70/12 | C176: U | D176: 67 | F176: 67 | G176: 0.16 | H176: 10.72 | I176: 3 | J176: 8
A177: COSCUI | B177: COSSE XCT 95/10 | C177: U | D177: 30 | F177: 30 | G177: 1.465 | H177: 43.95 | I177: 3 | J177: 8
A178: COSCUI | B178: COSSE XCT 95/12 | C178: U | D178: 31 | F178: 31 | G178: 1.465 | H178: 45.415 | I178: 3 | J178: 8
A179: COSCUI | B179: COSSE XCT 95/14 | C179: U | D179: 46 | F179: 46 | G179: 1.465 | H179: 67.39 | I179: 3 | J179: 8
A180: COSCUI | B180: COSSE XCT 150/10 | C180: U | D180: 4 | F180: 4 | H180: 0 | I180: 3
A181: COSCUI | B181: COSSE XCT 150/12 | C181: U | D181: 88 | F181: 88 | G181: 0.04 | H181: 3.52 | I181: 3 | J181: 8
A182: COSCUI | B182: COSSE XCT 150/14 | C182: U | D182: 2 | F182: 2 | H182: 0 | I182: 3
A183: COSCUI | B183: COSSE XCT 185/12 | C183: U | D183: 11 | F183: 11 | G183: 1.465 | H183: 16.115 | I183: 3 | J183: 8
A184: COSCUI | B184: COSSE XCT 240/10 | C184: U | D184: 7 | F184: 7 | H184: 0 | I184: 3
A185: COSCUI | B185: COSSE XCT 240/12 | C185: U | D185: 59 | F185: 59 | G185: 1.465 | H185: 86.435 | I185: 3 | J185: 8
A186: COSCUI | B186: COSSE XCT 240/14 | C186: U | D186: 4 | F186: 4 | I186: 3
B187: Cuivre-alu mécanique
A188: CUALAC | B188: Cosses Sm 25 - 70 VC XI 11 | C188: U | D188: 47 | F188: =D188-E188 -> 47 | H188: =F188*G188 -> 0 | I188: 3 | J188: 12
A189: CUALAC | B189: Cosses Sm 50 - 120 VC XI 14 | C189: U | D189: 32 | F189: 32 | G189: 17.85 | H189: 571.2 | I189: 3 | J189: 12
A190: CUALAC | B190: Cosses Sm 95 - 185 VC XI 18 | C190: U | D190: 18 | F190: 18 | G190: 21.3 | H190: 383.4 | I190: 3 | J190: 12
A191: CUALAC | B191: Cosses Sm 150 - 300 VC XI 22 | C191: U | D191: 23 | F191: 23 | H191: 0 | I191: 3 | J191: 12
A192: CUALAC | B192: Cosses Sm 240 - 500 VCXI 29 | C192: U | D192: 62 | F192: 62 | H192: =F192*G192 -> 0 | I192: 3 | J192: 12
A194: Manchons
B195: Cuivre à sertissage
A196: MANCUI | B196: Manchons de jonctions 6² | C196: U | D196: 206 | F196: =D196-E196 -> 206 | G196: 0.2 | H196: =F196*G196 -> 41.2 | I196: 3 | J196: 12
A197: MANCUI | B197: Manchons de jonctions 10² | C197: U | D197: 412 | F197: =D197-E197 -> 412 | G197: 0.29 | H197: =F197*G197 -> 119.48 | I197: 3 | J197: 12
A198: MANCUI | B198: Manchons de jonctions 16² | C198: U | D198: 1114 | F198: =D198-E198 -> 1114 | G198: 0.36 | H198: =F198*G198 -> 401.04 | I198: 3 | J198: 12
A199: MANCUI | B199: Manchons de jonctions 25² | C199: U | D199: 358 | F199: =D199-E199 -> 358 | G199: 0.39 | H199: =F199*G199 -> 139.62 | I199: 3 | J199: 12
A200: MANCUI | B200: Manchons de jonctions 35² | C200: U | D200: 55 | F200: =D200-E200 -> 55 | G200: 0.43 | H200: =F200*G200 -> 23.65 | I200: 3 | J200: 12
B201: Alu mécanique
A202: CUALAC | B202: Manchon Sm 35-95 | C202: U | D202: 35 | F202: =D202-E202 -> 35 | H202: =F202*G202 -> 0 | I202: 3 | J202: 12
B203: Alu Réductions
A204: CUALAC | B204: Manchon 50/150 | C204: U | D204: 26 | F204: =D204-E204 -> 26 | H204: =F204*G204 -> 0 | I204: 3 | J204: 12
A205: CUALAC | B205: Manchon 120 - 240 | C205: U | D205: 29 | F205: 29 | H205: 0 | I205: 3 | J205: 12
A207: Mise à la terre
A208: MISTER | B208: Fclip 16-35 (Nouveau DA 30) | C208: U | D208: 1630 | F208: =D208-E208 -> 1630 | G208: 1.05 | H208: =F208*G208 -> 1711.5 | I208: 3
A209: MISTER | B209: DA 30 | C209: U | D209: 412 | F209: 412 | G209: 1.37 | H209: 564.44 | I209: 3 | J209: 200
A210: MISTER | B210: DA 50 | C210: U | D210: 11 | F210: 11 | G210: 3.428 | H210: 37.708 | I210: 3
A211: MISTER | B211: DA 100 | C211: U | D211: 23 | F211: 23 | G211: 5.428 | H211: 124.844 | I211: 3
A212: MISTER | B212: SFP6AF8 | C212: U | D212: 1800 | F212: 1800 | G212: 1.79 | H212: 3222 | I212: 3 | K212: 7341921
A213: MISTER | B213: SF66 | C213: U | D213: 635 | F213: 635 | G213: 1.44 | H213: 914.4 | I213: 3 | K213: 7341001
A214: MISTER | B214: SF126 | C214: U | D214: 850 | F214: 850 | G214: 1.8 | H214: 1530 | I214: 3 | K214: 7341111
A215: MISTER | B215: Mécatraction SFP6PI55 | C215: U | D215: 300 | F215: 300 | H215: 0 | I215: 3
A216: BACOTE | B216: Barette coupure de terre | C216: U | D216: 31 | F216: 31 | G216: 3.91 | H216: 121.21 | I216: 3
A217: RETE5D | B217: Repartiteur de terre 5 dérivations | C217: U | D217: 284 | F217: 284 | G217: 2 | H217: 568 | I217: 3 | J217: 20
... 325 more rows

Sheet Mezzanine
B1: SARE / St Auban Mezzanine
A4: Stock : | B4: 2018-01-03
A6: Total
A7: =SUMIF(I9:I634,"Stock dormant",H9:H634) -> 38632.97
A9: Ref Magasin | B9: Articles | C9: Unité | D9: Entrée | E9: Sorti | F9: Q | G9: PU | H9: TOTAL HT | I9: Cat. | J9: Seuil critique | K9: Réf fourn
A10: Câbles
A11: Coffret et borne Cibe
B12: Coffret
A13: CIMO60 | B13: Coffret mono 60A | D13: 32 | F13: =D13-E13 -> 32 | G13: 83.69 | H13: =G13*F13 -> 2678.08 | I13: Stock dormant | K13: 69 80 890
A14: CIPPMO | B14: Coffret équipé mono 60A+ETR | D14: 5 | F14: =D14-E14 -> 5 | G14: 106 | H14: =G14*F14 -> 530 | I14: Stock dormant | K14: 69 80 891
A15: COPPMO | B15: Coffret mono 2x60A TLR | D15: 13 | F15: 13 | G15: 201.4 | H15: 2618.2 | I15: Stock dormant | K15: 69 80 888
B16: Bornes
A17: BOM60A | B17: Borne mono 60a | D17: 3 | F17: 3 | G17: 137.14 | H17: 411.42 | I17: Stock dormant | K17: 69 80 805
A18: BOM60T | B18: Borne mono 60a TLR | D18: 17 | F18: 17 | G18: 159.49 | H18: 2711.33 | I18: Stock dormant | K18: 69 80 806
A19: COCI60 | B19: Borne mono 2x60a TLR | D19: 11 | F19: 11 | G19: 262.77 | H19: 2890.47 | I19: Stock dormant | K19: 69 80 803
A20: CIMO90 | B20: Borne mono 90 A | F20: 0 | H20: 0 | I20: Stock dormant | K20: 69 80 810
A21: COCIBO | B21: Borne grille fausse coupure 2x150 2x35 | F21: 0 | H21: 0 | I21: Stock dormant | K21: 69 80 816
A22: BOBRT2 | B22: Borne branch mono T2 | D22: 11 | F22: 11 | G22: 307.08 | H22: 3377.88 | I22: Stock dormant | K22: 69 80 811
A23: CIT2DD | B23: Bornes type 2 dos a dos 60A | F23: 0 | G23: 465.14 | H23: 0 | I23: Stock dormant | K23: 69 80 812
B24: GRILLES
A25: GR153- | B25: Grille étoilement 150² - 3x35² | D25: 16 | F25: 16 | G25: 168.9 | H25: 2702.4 | I25: Stock dormant | K25: 69 80 819
A26: GR2X-- | B26: Grille fausse coupure 2x150² - 2x35² | D26: 5 | F26: 5 | G26: 203.63 | H26: 1018.15 | I26: Stock dormant | K26: 69 80 820
B27: Kits
A28: KITRCI | B28: Kit tri 60A | D28: 1 | F28: 1 | G28: 50.8 | H28: 50.8 | I28: Stock dormant | K28: 69 80 881
B30: Divers
A31: GRARTE | B31: Porte coffret + téléreport | D31: 9 | F31: =D31-E31 -> 9 | H31: =G31*F31 -> 0 | I31: Stock dormant | K31: 69 80 825
A32: PAAC | B32: Panneau accés coffret | D32: 8 | F32: 8 | H32: 0 | I32: Stock dormant | K32: 69 80 824
A34: S15
B35: Coffret
A36: COCIFI | B36: Corp S15 CIP + Fix panneau | D36: 1 | F36: =D36-E36 -> 1 | H36: =G36*F36 -> 0 | I36: Stock dormant | K36: 69 80 158
B37: Divers
A38: COUSOC | B38: Couvercle socle S15 | D38: 2 | F38: 2 | G38: 33.57 | H38: 67.14 | I38: Stock dormant | K38: 69 80 087
A39: PORCOF | B39: Porte S15 | D39: 3 | F39: 3 | H39: 0 | I39: Stock dormant | K39: 69 80 151
A41: S20
B42: Coffret
A43: COMOTR | B43: Coffret de comptage Mono/Tri + Capot | F43: =D43-E43 -> 0 | G43: 42.1 | H43: =G43*F43 -> 0 | I43: Stock dormant | K43: 69 80 138
B44: Socles
A45: SOCDOU | B45: Socle double 700 | D45: 11 | F45: 11 | G45: 228.43 | H45: 2512.73 | I45: Stock dormant | K45: 69 80 036
B46: CONNECTIONS
A47: GRIREP | B47: Grille de repiquage pour S20 | D47: 3 | F47: 3 | G47: 60.09 | H47: 180.27 | I47: Stock dormant | K47: 69 80 492
A48: MOARBP | B48: Module d'arrivé bi-polaire S20 | D48: 47 | F48: 47 | G48: 32.2 | H48: 1513.4 | I48: Stock dormant | K48: 69 80 136
A49: MODEBP | B49: Module départ bi-polaire S20 | D49: 37 | F49: 37 | G49: 22.24 | H49: 822.88 | I49: Stock dormant | K49: 69 80 137
A50: BOCO4D | B50: Boitier de connection TLR 4 Directions | D50: 170 | F50: 170 | G50: 18.55 | H50: 3153.5 | I50: Stock dormant | K50: 44 49 075
A51: PMTREM | B51: Panneau Mono/Tri équipé Mono | D51: 14 | F51: 14 | G51: 56.1 | H51: 785.4 | I51: Stock dormant | K51: 69 80 132
B52: Divers
A53: POS20T | B53: Porte S20T | D53: 36 | F53: 36 | H53: 0 | I53: Stock dormant | K53: 69 80 027
A54: PO20TS | B54: Porte S20T Sertria | D54: 39 | F54: 39 | H54: 0 | I54: Stock dormant | K54: 69 80 331
A55: POTS20 | B55: Porte S20 | D55: 4 | F55: 4 | H55: 0 | I55: Stock dormant | K55: 69 80 026
A56: PASÉLEC TRI | B56: Interface remplacement compteur tri | D56: 11 | F56: 11 | G56: 75.04 | H56: 825.44 | I56: Stock dormant | K56: 69 80 337
A57: DISUMO | B57: Dispositif subtitution compt mono | D57: 16 | F57: 16 | G57: 66.17 | H57: 1058.72 | I57: Stock dormant | K57: 69 80 336
A59: S22
B60: Coffret
A61: C22DIC | B61: Coffret haut platine compt disj | F61: =D61-E61 -> 0 | H61: =G61*F61 -> 0 | I61: Stock dormant | K61: 69 80 429
B62: Socles
A63: SOCHAU | B63: Socle haut S22 | F63: 0 | G63: 103 | H63: 0 | I63: Stock dormant | K63: 69 80 460
B64: Platines
A65: PLDOMO | B65: Platine S22 double mono 60A | D65: 1 | F65: 1 | H65: 0 | I65: Stock dormant | K65: 69 80 496
A66: PLADCC | B66: Platine S22 A2/D2 C/C | D66: 21 | F66: 21 | G66: 59.14 | H66: 1241.94 | I66: Stock dormant | K66: 69 80 495
A67: PL22T2 | B67: Platine S22 type 2 | D67: 24 | F67: 24 | H67: 0 | I67: Stock dormant | K67: 69 80 499
A68: GRRS23 | B68: Grille de repiquage S22 | D68: 2 | F68: 2 | H68: 0 | I68: Stock dormant | K68: 69 80 493
B69: Divers
A70: POS22T | B70: Porte + TLR | D70: 26 | F70: 26 | G70: 47.48 | H70: 1234.48 | I70: Stock dormant | K70: 69 80 477
A72: S17
B73: Coffret
A74: COCCCC | B74: Coffret T 2 / Capot coupe circuit | D74: 4 | F74: =D74-E74 -> 4 | H74: =G74*F74 -> 0 | I74: Stock dormant | K74: 69 80 001
A76: CGV
B77: Bornes
A78: BOCGTR | B78: Borne CGV platine Type 2 tri | F78: =D78-E78 -> 0 | G78: 477.36 | H78: =G78*F78 -> 0 | I78: Stock dormant | K78: 69 80 813
B79: Platines
A80: PAGR35 | B80: Platine T2 Tri | D80: 42 | F80: 42 | H80: 0 | I80: Stock dormant | K80: 69 80 815
A81: PLS2CG | B81: Platine comptage tri | D81: 1 | F81: 1 | H81: 0 | I81: Stock dormant | K81: 69 80 837
A82: GRRECI | B82: Grille de repiquage cible 3x35 | D82: 1 | F82: 1 | H82: 0 | I82: Stock dormant | K82: 69 80 818
A84: C400/P200
B85: Coffret
A86: COSOTE | B86: Coffret C400/P200 + socle + telereport | D86: 1 | F86: =D86-E86 -> 1 | G86: 517.96 | H86: =G86*F86 -> 517.96 | I86: Stock dormant | K86: 69 02 053
A87: PACCTR | B87: Pack ccpi tri disj 60a S35-200 a-400a-60a | D87: 22 | F87: 22 | H87: 0 | I87: Stock dormant | K87: 69 40 053
A88: PACCMO | B88: Pack ccpi mono disj 400/90a | D88: 5 | F88: 5 | H88: 0 | I88: Stock dormant | K88: 60 45 22
A90: Colonnes
B91: Coffret
A92: COCCTE | B92: coffret cc tetra 60a | D92: 48 | F92: =D92-E92 -> 48 | H92: =G92*F92 -> 0 | I92: Stock dormant | K92: 69 40 038
A93: COCCBI | B93: coffret cc bipo 90 a | D93: 47 | F93: 47 | H93: 0 | I93: Stock dormant | K93: 69 40 036
B94: Panneaux
A95: PACCMO | B95: Pack ccpi mono 90A distri 400 a | F95: 0 | H95: 0 | I95: Stock dormant | K95: 69 40 522
A96: PACOMO | B96: Panneau contrôle prod mono | D96: 1 | F96: 1 | G96: 67.03 | H96: 67.03 | I96: Stock dormant | K96: 69 81 282
A97: NIDABE | B97: NID D ABEILLE | D97: 9 | F97: 9 | H97: 0 | I97: Stock dormant | K97: 69 02 149
A98: PATRDI | B98: Panneau 250x800 tri et CC | D98: 27 | F98: 27 | G98: 125.75 | H98: 3395.25 | I98: Stock dormant | K98: 69 81 222
A99: ADAAIG | B99: Interface remplacement compteur | D99: 38 | F99: 38 | G99: 35.95 | H99: 1366.1 | I99: Stock dormant | K99: 69 81 279
A100: PCMODO | B100: Platine de comptage Mono double | D100: 41 | F100: 41 | G100: 22 | H100: 902 | I100: Stock dormant | K100: 69 81 292
A101: PAHN50 | B101: Panneau mono 250X500 blanc sans habillage | D101: 20 | F101: 20 | H101: 0 | I101: Stock dormant | K101: 68 81 210
A103: Bornes de charge
B104: Disjoncteur Puissance
A105: NS250V | B105: NSX 250 F vigi 4P4D | D105: 1 | F105: =D105-E105 -> 1 | H105: =G105*F105 -> 0 | I105: Stock dormant | K105: LV431950
A106: NS400M | B106: NSX 400F Micrologic 2,3 4P4D | D106: 1 | F106: 1 | H106: 0 | I106: Stock dormant | K106: LV432677
A107: CABOLE | B107: Cache borne Long 4P pour NSX400/630 | D107: 2 | F107: 2 | H107: 0 | I107: Stock dormant | K107: LV432594
A108: CABOLE | B108: Cache borne Long pour épanouisseur 4P 400A | D108: 1 | F108: 1 | H108: 0 | I108: Stock dormant | K108: LV432596
B109: Disjoncteur Branchement
A110: DD1030 | B110: Disjoncteur Mono 10/30A 500MA | D110: 12 | F110: 12 | H110: 0 | I110: Stock dormant | K110: 585031 30A
A111: DIBR1545 | B111: Disjoncteur Mono 15/45A 500 MA | D111: 42 | F111: 42 | H111: 0 | I111: Stock dormant | K111: 245500
A112: DIBR3060 | B112: Disjoncteur Mono 30/60A 500 MA | D112: 16 | F112: 16 | H112: 0 | I112: Stock dormant | K112: 2605009
A113: DD6090 | B113: Disjoncteur Mono 60/90A 500MA | D113: 34 | F113: 34 | H113: 0 | I113: Stock dormant | K113: 585026 90A
A114: DD304P | B114: Disjoncteur différentiel 30A 500MA 4P | D114: 2 | F114: 2 | H114: 0 | I114: Stock dormant | K114: 6930056
B115: Disjoncteur Modulaire
A116: DI402A | B116: Disjoncteur DT 40 mono C 2A | D116: 9 | F116: 9 | H116: 0 | I116: Stock dormant | K116: DT 40N C 2A
A117: DI404A | B117: Disjoncteur DT 40 mono C 4A | D117: 10 | F117: 10 | H117: 0 | I117: Stock dormant | K117: DT 40N C 4A
A118: DIDT10 | B118: Disjoncteur DT40 2x10A | D118: 10 | F118: 10 | H118: 0 | I118: Stock dormant | K118: A9N21365
A119: DT4016 | B119: Disjoncteur DT 40 mono C 16 | D119: 9 | F119: 9 | H119: 0 | I119: Stock dormant | K119: DT 40N C 16A
A120: DT4020 | B120: Disjoncteur DT 40 mono C 20 | D120: 13 | F120: 13 | H120: 0 | I120: Stock dormant | K120: DT 40N C 20A
A121: BDV40A | B121: Bloc différentiel vigi DT 40A | D121: 9 | F121: 9 | H121: 0 | I121: Stock dormant | K121: A9N21450
A122: BLDI40 | B122: Bloc différentiel DT40 30mA | D122: 23 | F122: 23 | H122: 0 | I122: Stock dormant | K122: A9N21454
A123: CODOSI | B123: Double contact de signalisation Of +sd+of | D123: 3 | F123: 3 | H123: 0 | I123: Stock dormant | K123: 26929
A124: CONTOF | B124: Contact auxilliaire OF DT 40 | D124: 28 | F124: 28 | H124: 0 | I124: Stock dormant | K124: A9N26924
B125: Inter differentiel
A126: I40300 | B126: Inter différentiel 40A 300mA | D126: 1 | F126: 1 | H126: 0 | I126: Stock dormant | K126: ID 40A 300MA
B127: Divers Modulaire
A128: HORLOG | B128: Horloge modulaire deux canaux | D128: 9 | F128: 9 | H128: 0 | I128: Stock dormant | K128: CCT 15853
A129: ALIMOD | B129: Transfo modulaire 220/24 5W | D129: 9 | F129: 9 | H129: 0 | I129: Stock dormant | K129: ABL8MEM24006
A130: COEN40 | B130: Compteur mono 40A modulaire | D130: 20 | F130: 20 | H130: 0 | I130: Stock dormant | K130: A9MEM2010
B131: Divers
A132: BOI6TR | B132: Boitier à boutons 6 trous | D132: 14 | F132: 14 | H132: 0 | I132: Stock dormant | K132: XAP M3206
A133: BORBRA | B133: Contact pour bouton NC | D133: 75 | F133: 75 | H133: 0 | I133: Stock dormant | K133: ZBE 102
A134: BOUCLE | B134: Bouton à clef 455 noir 2 positions | D134: 89 | F134: 89 | H134: 0 | I134: Stock dormant | K134: XB4 BG21
A135: ETBOCL | B135: Etiquette pour bouton à clefs | D135: 90 | F135: 90 | H135: 0 | I135: Stock dormant | K135: ZBE 2101
A136: P20B2T | B136: Platine repiquage Tri | D136: 22 | F136: 22 | H136: 0 | I136: Stock dormant | K136: 69 80 396
A137: SUPCAB | B137: Support de câble sur borne | D137: 7 | F137: 7 | H137: 0 | I137: Stock dormant | K137: EVP1PH
A138: COMOVI | B138: COFFRET MONITO VIDE | F138: 0 | H138: 0 | I138: Stock dormant
A139: COHATI | B139: COFFRET HANGARS TI | F139: 0 | H139: 0 | I139: Stock dormant
B140: Bornes
A141: BORRMI | B141: Borne Remic 2014+JDB 450+TEL | D141: 0 | F141: 0 | H141: 0 | I141: Stock dormant
A142: BONRMI | B142: Borne Remic 2014 600+JDB 600+TEL | D142: 3 | F142: 3 | H142: 0 | I142: Stock dormant
A143: BORRMI | B143: Borne Remic 2014 300+JDB 300+TEL | D143: 21 | F143: 21 | H143: 0 | I143: Stock dormant
A144: SOPPCO | B144: Socle pour coffret Puiss surveillée 200/400A | D144: 1 | F144: 1 | H144: 0 | I144: Stock dormant | K144: 69 80 210
A145: COFETA | B145: Coffret étanche | D145: 29 | F145: 29 | H145: 0 | I145: Stock dormant | K145: 01908
A146: COFETA | B146: Coffret étanche | D146: 2 | F146: 2 | H146: 0 | I146: Stock dormant | K146: 4114035
A147: COFETA | B147: Coffret étanche | D147: 2 | F147: 2 | H147: 0 | I147: Stock dormant | K147: 01925
A148: COFETA | B148: Coffret étanche | D148: 1 | F148: 1 | H148: 0 | I148: Stock dormant | K148: 414034

Sheet Supports
B1: SARE / St Auban Supports
A4: Stock : | B4: 2018-01-03
A6: Total
A7: =SUMIF(I14:I78,2,H14:H78) -> 4890.68
A11: Ref Magasin | B11: Articles | C11: Unité | D11: Entrée | E11: Sortie | F11: Q | G11: PU | H11: TOTAL HT | I11: Cat. | J11: Seuil critique | K11: Réf. Fourn.
A12: SUPPORTS
B13: Béton
A14: SUPBET | B14: 10 D 2,5 | D14: 1 | F14: 1 | G14: 257.86 | H14: =F14*G14 -> 257.86 | I14: 2 | K14: 1 teinte
A15: SUPBET | B15: 10 D 400 | D15: 1 | F15: 1 | G15: 327.99 | H15: =F15*G15 -> 327.99 | I15: 2
A16: SUPBET | B16: 10 D 6,5 | F16: 0 | G16: 389 | H16: 0 | I16: 2 | K16: 1 teinte
A17: SUPBET | B17: 11 D 400 | F17: 0 | G17: 377.92 | H17: 0 | I17: 2
A18: SUPBET | B18: 11 D 6,5 | D18: 1 | F18: 1 | G18: 481.88 | H18: 481.88 | I18: 2 | K18: 1 teinte
A19: SUPBET | B19: 11 D 8 | F19: 0 | G19: 537.16 | H19: 0 | I19: 2
A20: SUPBET | B20: 12 D 400 | D20: 1 | F20: 1 | G20: 429.9 | H20: 429.9 | I20: 2
A21: SUPBET | B21: 12 D 6,5 | D21: 1 | F21: 1 | G21: 548.3 | H21: 548.3 | I21: 2
A22: SUPBET | B22: 12 D 8 | F22: 0 | G22: 610.19 | H22: 0 | I22: 2
A23: SUPBET | B23: 12 D 10 | F23: 0 | G23: 696.01 | H23: 0 | I23: 2
A24: SUPBET | B24: 12 E 800 | F24: 0 | G24: 759.54 | H24: 0 | I24: 2
A25: SUPBET | B25: 12 E 10 | F25: 0 | G25: 923.33 | H25: 0 | I25: 2
A26: SUPBET | B26: 12 E 20 | F26: 0 | G26: 1432.86 | H26: 0 | I26: 2
A27: SUPBET | B27: 14 E 20 | F27: 1 | G27: 1376.33 | H27: 1376.33 | I27: 2
A28: SUPBET | B28: 15 E 16 | F28: 0 | G28: 1517.97 | H28: 0 | I28: 2
A29: SUPBET | B29: 13 E 16 | F29: 0 | G29: 1434.91 | H29: 0 | I29: 2
A30: SUPBOI | B30: 9 S 325 | F30: 0 | G30: 189 | H30: 0 | I30: 2
B31: Bois
A32: SUPBOI | B32: 10 S 190 | F32: 0 | G32: 154.4 | H32: 0 | I32: 2
A33: SUPBOI | B33: 10 S 325 | F33: 0 | G33: 226 | H33: 0 | I33: 2
A34: SUPBOI | B34: 11 S140 | F34: 0 | G34: 145.3 | H34: 0 | I34: 2
A35: SUPBOI | B35: 11 S190 | F35: 0 | G35: 175.3 | H35: 0 | I35: 2
A36: SUPBOI | B36: 11 S255 | F36: 0 | G36: 259.1 | H36: 0 | I36: 2
A37: SUPBOI | B37: 11 S325 | F37: 0 | G37: 259.1 | H37: 0 | I37: 2
A38: SUPBOI | B38: 12 S255 | F38: 1 | G38: 259.1 | H38: 259.1 | I38: 2
A39: SUPBOI | B39: 13 S 325 | F39: 0 | G39: 247 | H39: 0 | I39: 2
A40: SUPBOI | B40: 12 S190 | F40: 0 | G40: 202 | H40: 0 | I40: 2
A41: SUPBOI | B41: 12 S 325 | F41: 0 | G41: 244 | H41: 0 | I41: 2
A42: SUPBOI | B42: 12 S 325 | F42: 0 | G42: 326.3 | H42: 0 | I42: 2
A43: SUPBOI | B43: 13 S 190 | F43: 0 | G43: 328 | H43: 0 | I43: 2
A44: SUPBOI | B44: 13 S 325 | F44: 2 | G44: 368 | H44: 736 | I44: 2
A45: SUPBOI | B45: 13 S 255 | F45: 0 | G45: 398 | H45: 0 | I45: 2
A46: SUPBOI | B46: 14 S 190 | F46: 0 | G46: 402 | H46: 0 | I46: 2
A47: SUPBOI | B47: 14 S 255 | F47: 1 | G47: 412 | H47: 412 | I47: 2
A48: SUPBOI | B48: 14 S 325 | F48: 0 | H48: 0 | I48: 2
A49: SUPBOI | B49: 15 S 325 | F49: 0 | G49: 453 | H49: 0 | I49: 2
A50: SUPBOI | B50: 12 s 140 | F50: 0 | G50: 225 | H50: 0 | I50: 2
B51: Buses
A52: BUSNOI | B52: Buse diamètre 400 (au ml) | D52: 1 | F52: 1 | G52: 15.33 | H52: 15.33 | I52: 2 | J52: 12
A53: BUSNOI | B53: Buse diamètre 600 (au ml) | D53: 1 | F53: 1 | G53: 15.33 | H53: 15.33 | I53: 2 | J53: 6
A54: BUSNOI | B54: Buse diamètre 800 (au ml) | F54: 0 | G54: 15.33 | H54: 0 | I54: 2 | J54: 6
A55: BUSNOI | B55: Buse diamètre 1000 (au ml) | D55: 2 | F55: 2 | G55: 15.33 | H55: 30.66 | I55: 2

Sheet Ligne
B1: SARE / St Auban Local Ligne
A4: Stock : | B4: 2018-01-03
A6: Total
A7: =SUMIF(I11:I450,2,H11:H450) -> 146292.68
A10: Ref Magasin | B10: Articles | C10: Unité | D10: Entrée | E10: Sortie | F10: Q | G10: PU | H10: TOTAL HT | I10: Cat. | J10: Seuil critique | K10: Réf. Fourn.
A11: Câbles Aérien HTA
B12: Almelec
A13: CABAST | B13: Cond Allialu Nu GR Aster 34,4 Nu | C13: ml | D13: 100 | F13: =D13-E13 -> 100 | H13: =G13*F13 -> 0 | I13: 2 | K13: 59 52 335
A14: CABAST | B14: Cond Allialu Nu GR Aster 54,6 Nu | C14: ml | D14: 100 | F14: =D14-E14 -> 100 | G14: 1.1 | H14: =G14*F14 -> 110 | I14: 2
A15: CABAST | B15: Cond Allialu Nu GR Aster 75 Nu | C15: ml | F15: 0 | H15: 0 | I15: 2
A16: CABAST | B16: Cond Allialu Nu GR Aster 116 Nu | C16: ml | F16: 0 | H16: 0 | I16: 2
A17: CABAST | B17: Cond Allialu Nu GR Aster 117 Nu | C17: ml | F17: 0 | H17: 0 | I17: 2
A18: CABAST | B18: Cond Allialu Nu GR Aster 148 Nu | C18: ml | F18: 0 | H18: 0 | I18: 2
B19: Alu Acier
A20: CABPHL | B20: Cond Allialuac Nu Gr Phlox 37,7 | C20: ml | D20: 200 | F20: 200 | H20: 0 | I20: 2 | K20: 59 56 205
A21: CABAST | B21: Aster 59 NU | C21: ml | F21: 0 | G21: 1.98 | H21: 0 | I21: 2
A22: CABAST | B22: Aster 60 NU | C22: ml | F22: 0 | G22: 1.79 | H22: 0 | I22: 2
A23: CABAST | B23: Aster 75 NU | C23: ml | F23: 0 | G23: 1.79 | H23: 0 | I23: 2
A24: CABAST | B24: Aster 116 NU | C24: ml | F24: 0 | G24: 1.79 | H24: 0 | I24: 2
B25: Gainé
A26: CABASG | B26: Cable Aster 54,6 G - Couronne | C26: ml | D26: 100 | F26: 100 | H26: 0 | I26: 2
A27: CABASG | B27: Cable Aster 148mm2 Gaine (Couronne 50m) | C27: ml | D27: 50 | F27: 50 | H27: 0 | I27: 2 | K27: 61 24 036
A29: Armement HTA
B30: Poutres
A31: ARMSUP | B31: VR1 | C31: U | D31: 14 | F31: 14 | G31: 121.91 | H31: =G31*F31 -> 1706.74 | I31: 2 | K31: 6853335
A32: ARMSUP | B32: VR1 Gainé | C32: U | D32: 0 | F32: 0 | G32: 198.6 | H32: 0 | I32: 2 | K32: 68 53 336
A33: ARMSUP | B33: VR2 | C33: U | D33: 19 | F33: 19 | G33: 198.6 | H33: 3773.4 | I33: 2 | K33: 68 53 337
A34: ARMSUP | B34: VR2 Gainé | C34: U | D34: 0 | F34: 0 | G34: 198.6 | H34: 0 | I34: 2 | K34: 68 53 338
A35: ARMSUP | B35: NV1 60/80 | C35: U | D35: 11 | F35: 11 | G35: 252.69 | H35: 2779.59 | I35: 2 | K35: 68 57 226
A36: ARMSUP | B36: NV1 80/80 | C36: U | D36: 20 | F36: 20 | G36: 252.69 | H36: 5053.8 | I36: 2 | K36: 68 57 244
A37: ARMSUP | B37: NV2 60/70 | C37: U | F37: 0 | G37: 177.26 | H37: 0 | I37: 2 | K37: 68 57 265
A38: ARMSUP | B38: NA2Y 6300 D | C38: U | F38: 0 | H38: 0 | I38: 2 | K38: 68 55 113
A39: ARMSUP | B39: NA4Y 3150 D | C39: U | D39: 2 | F39: 2 | H39: 0 | I39: 2 | K39: 68 55 401
A40: ARMSUP | B40: NA3U 20 000S | C40: U | D40: 1 | F40: 1 | H40: 0 | I40: 2 | K40: 68 55 315
A41: ARMSUP | B41: NA3U 16 000S | C41: U | D41: 1 | F41: 1 | H41: 0 | I41: 2 | K41: 68 55 314
A42: ARMSUP | B42: MNA 1Y 6300D | C42: U | D42: 1 | F42: 1 | H42: 0 | I42: 2 | K42: 68 55 106
B43: Colliers
A44: COLGAL | B44: CNV 180 (Ensemble) | C44: U | D44: 58 | F44: 58 | G44: 17.62 | H44: 1021.96 | I44: 2 | K44: 68 57 425
A45: COLGAL | B45: CNV 160 (Ensemble) | C45: U | D45: 20 | F45: 20 | G45: 16.88 | H45: 337.6 | I45: 2 | K45: 68 57 418
A46: COLGAL | B46: CNV 200 (Ensemble) | C46: U | D46: 30 | F46: 30 | G46: 23.16 | H46: 694.8 | I46: 2 | K46: 68 57 438
A47: COLGAL | B47: CNV 60-240 | C47: U | D47: 6 | F47: 6 | H47: 0 | I47: 2 | K47: 68 57 440
A48: COLGAL | B48: CNV60160 J (Ensemble) | C48: U | D48: 9 | F48: 9 | G48: 37.63 | H48: 338.67 | I48: 2 | K48: CNV160J1BH
A49: COLDOU | B49: Collier universel double | C49: U | D49: 0 | F49: 0 | G49: 40.02 | H49: 0 | I49: 2 | K49: CUPBJ
B50: Fixations
A51: BOUGAL | B51: BH 14X 50MM avec Ecrou | C51: U | D51: 140 | F51: 140 | H51: 0 | I51: 2 | K51: 68 00 676
A52: BOUGAL | B52: BH 14X100MM avec Ecrou | C52: U | D52: 800 | F52: 800 | H52: 0 | I52: 2 | K52: 68 00 682
A53: BOUGAL | B53: BH 14X 150MM avec Ecrou | C53: U | D53: 19 | F53: 19 | H53: 0 | I53: 2 | K53: 68 00 688
A54: BOUGAL | B54: BH 14X 200MM avec Ecrou | C54: U | D54: 18 | F54: 18 | H54: 0 | I54: 2 | K54: 68 00 691
A55: BOUGAL | B55: BH 14X 250MM avec Ecrou | C55: U | D55: 200 | F55: 200 | H55: 0 | I55: 2 | K55: 68 00 697
A56: BOUGAL | B56: BH 14X 300MM avec Ecrou | C56: U | D56: 6 | F56: 6 | H56: 0 | I56: 2 | K56: 68 00 703
A57: BOUGAL | B57: BH 14X 400MM avec Ecrou | C57: U | D57: 0 | F57: 0 | H57: 0 | I57: 2 | K57: 68 00 715
A58: BOUGAL | B58: BH 14X 450MM avec Ecrou | C58: U | D58: 4 | F58: 4 | H58: 0 | I58: 2 | K58: 68 00 718
A59: BOUGAL | B59: BH 14X 500MM avec Ecrou | C59: U | F59: 0 | H59: 0 | I59: 2 | K59: 68 00 718
A60: BOUGAL | B60: BH 14X 600MM avec Ecrou | C60: U | F60: 0 | H60: 0 | I60: 2 | K60: 68 00 718
A61: TIGFIL | B61: BH 16/200 | C61: U | D61: 10 | F61: =D61-E61 -> 10 | H61: =G61*F61 -> 0 | I61: 2 | K61: 68 00 743
A62: TIGFIL | B62: BH 16/400 | C62: U | D62: 66 | F62: =D62-E62 -> 66 | H62: =G62*F62 -> 0 | I62: 2 | K62: 68 10 207
A63: TIGFIL | B63: BH 16/500 | C63: U | D63: 10 | F63: =D63-E63 -> 10 | H63: =G63*F63 -> 0 | I63: 2 | K63: 68 10 209
A64: TIGFIL | B64: BH 16/700 | C64: U | D64: 2 | F64: =D64-E64 -> 2 | H64: =G64*F64 -> 0 | I64: 2 | K64: 68 00 755
A65: PLACAR | B65: PR 55 | C65: U | D65: 144 | F65: 144 | H65: 0 | I65: 2 | K65: 68 05 112
A66: PLACAR | B66: PR 35 | C66: U | D66: 33 | F66: 33 | H66: 0 | I66: 2 | K66: 6805104
A67: PLACAR | B67: PL 50/50 | C67: U | D67: 0 | F67: 0 | H67: 0 | I67: 2
A68: ETR4EC | B68: Etriers 14 70 120 | C68: U | D68: 425 | F68: 425 | G68: 3.47 | H68: 1474.75 | I68: 2 | K68: 68 62 048
A69: ETR4EC | B69: Etriers 14 70 200 | C69: U | D69: 65 | F69: 65 | H69: 0 | I69: 2 | K69: 68 62 056
A70: ETR4EC | B70: Etriers 14 70 400 | C70: U | F70: 0 | G70: 11.88 | H70: 0 | I70: 2 | K70: 68 62 136
A71: ETR4EC | B71: Etriers 16 70 120 | C71: U | D71: 16 | F71: 16 | G71: 6.03 | H71: 96.48 | I71: 2 | K71: 68 62 170
A72: ETR4EC | B72: Etriers 16 70 200 | C72: U | D72: 31 | F72: 31 | G72: 6.87 | H72: 212.97 | I72: 2 | K72: 68 62 171
A73: RALGAL | B73: RL 40x300 | C73: U | D73: 38 | F73: 38 | G73: 6.61 | H73: 251.18 | I73: 2 | K73: 68 65 144
A74: RALGAL | B74: RL 40x600 | C74: U | F74: 0 | G74: 17.96 | H74: 0 | I74: 2 | K74: 68 55 204
B75: Isolateurs
A76: ISOVER | B76: VHT 20T | C76: U | D76: 114 | F76: 114 | G76: 14.98 | H76: 1707.72 | I76: 2 | K76: 66 176 08
A77: ISOVER | B77: VHT 22T | C77: U | D77: 54 | F77: =D77-E77 -> 54 | G77: 18.69 | H77: 1009.26 | I77: 2 | K77: 66 176 14
A78: ISOVER | B78: Iso verre capot tige CT 175/40 | C78: U | D78: 127 | F78: 127 | G78: 12.39 | H78: 1573.53 | I78: 2 | K78: 66 10 047
A79: ISOVER | B79: Iso verre capot tige CT 254/40 | C79: U | D79: 30 | F79: 30 | H79: 0 | I79: 2 | K79: 66 10 062
B80: Accessoires isolateurs
A81: TIGRAL | B81: TR 200 | C81: U | D81: 197 | F81: 197 | G81: 8.73 | H81: 1719.81 | I81: 2 | K81: 68 54 158
A82: TIGRAL | B82: TR 240 | C82: U | D82: 33 | F82: 33 | G82: 9.22 | H82: 304.26 | I82: 2 | K82: 68 54 161
A83: TIGRAL | B83: TR 285 | C83: U | F83: 0 | G83: 9.22 | H83: 0 | I83: 2 | K83: 68 54 164
A84: OEICHA | B84: OL 70 | C84: U | D84: 158 | F84: 158 | G84: 4.94 | H84: 780.52 | I84: 2 | K84: 68 63 012
A85: BALCHA | B85: BS 70 | C85: U | D85: 58 | F85: 58 | G85: 14.08 | H85: 816.64 | I85: 2 | K85: 68 66 011
A86: BALCHA | B86: BS 40 | C86: U | D86: 219 | F86: 219 | G86: 4.8 | H86: 1051.2 | I86: 2 | K86: 68 66 010
A87: OEICHA | B87: OL 40 | C87: U | D87: 148 | F87: 148 | G87: 3.14 | H87: 464.72 | I87: 2 | K87: 68 63 008
A88: BLACHA | B88: B11 A (6866095) | C88: U | F88: 0 | H88: 0 | I88: 2 | K88: 68 66 095
A89: OEICHA | B89: OR 1 (6863017) | C89: U | F89: 0 | G89: 2.46 | H89: 0 | I89: 2 | K89: 68 63 017
A90: CHAGAV | B90: CH 8A | C90: U | D90: 77 | F90: 77 | H90: 0 | I90: 2 | K90: 6865047 | L90: double etrier
A91: PIALAL | B91: Pinces alignement alu 22/75 | C91: U | F91: 0 | H91: 0 | I91: 2 | K91: 6860303 | L91: 6860453
A92: PIALAL | B92: Pinces alignement alu 75/148 | C92: U | F92: 0 | H92: 0 | I92: 2
A93: FIISVE | B93: Malicol 20 22 | C93: U | D93: 92 | F93: 92 | G93: 18.95 | H93: =G93*F93 -> 1743.4 | I93: 2 | K93: 67 51 007
A94: FIISVE | B94: Malicol 30 | C94: U | F94: 0 | H94: 0 | I94: 2 | K94: 67 51 006
A95: FIISVE | B95: Malicol 36 | C95: U | D95: 89 | F95: 89 | G95: 18.95 | H95: 1686.55 | I95: 2 | K95: 67 51 004
A96: FIISVE | B96: Malicol 75 | C96: U | D96: 24 | F96: 24 | H96: 0 | I96: 2
B97: Connectique
A98: RABRIS | B98: CBOG 54G | C98: U | D98: 400 | F98: 400 | G98: 10.93 | H98: 4372 | I98: 2 | K98: 67 21 241
A99: RABRIS | B99: CBOG 148G | C99: U | D99: 77 | F99: 77 | G99: 18.65 | H99: 1436.05 | I99: 2 | K99: 67 21 243
A100: RABRIS | B100: CD74 AG2-06-54 AL (Racc TST) | C100: U | F100: 0 | G100: 10.93 | H100: 0 | I100: 2 | K100: 67 21 153
A101: RABRIS | B101: CD74 AG2-06-54 Cu (Racc TST) | C101: U | F101: 0 | G101: 10.93 | H101: 0 | I101: 2 | K101: 67 31 153
A102: RABRIS | B102: CD74 AG2-06-148 AL (Racc TST) | C102: U | F102: 0 | G102: 18.65 | H102: 0 | I102: 2 | K102: 67 21 154
A103: RABRIS | B103: CD74 AG2-06-148 cu (Racc TST) | C103: U | F103: 0 | G103: 18.65 | H103: 0 | I103: 2 | K103: 67 31 154
A104: RABRIS | B104: CD 74 AP 54 (Racc TST) | C104: U | F104: 0 | G104: 52.44 | H104: 0 | I104: 2 | K104: 67 21 153
A105: RABRIS | B105: CD 74 CG 148 (Racc TST) | C105: U | F105: 0 | G105: 75.98 | H105: 0 | I105: 2 | K105: 67 31 154
A106: ANALAC | B106: AB 38 | C106: U | D106: 140 | F106: 140 | G106: 34.86 | H106: 4880.4 | I106: 2 | K106: 68 61 400
A107: ANALAC | B107: AB 54 | C107: U | F107: 0 | G107: 60 | H107: 0 | I107: 2
A108: ANALAC | B108: AB 59 | C108: U | D108: 37 | F108: 37 | G108: 60.35 | H108: 2232.95 | I108: 2 | K108: 68 61 402
A109: ANALAC | B109: AB 60 | C109: U | D109: 32 | F109: 32 | G109: 46.99 | H109: 1503.68 | I109: 2 | K109: 68 61 404
A110: ANALAC | B110: AB 69 | C110: U | D110: 17 | F110: 17 | G110: 64.84 | H110: 1102.28 | I110: 2
A111: ANALAC | B111: AB 75 | C111: U | D111: 15 | F111: 15 | G111: 55.35 | H111: 830.25 | I111: 2 | K111: 68 61 406
A112: ANALAC | B112: AB 80 | C112: U | D112: 9 | F112: 9 | G112: 61.19 | H112: 550.71 | I112: 2 | K112: 68 61 408
A113: ANALAC | B113: AB 88 | C113: U | F113: 0 | G113: 59.41 | H113: 0 | I113: 2
A114: ANALAC | B114: AB 116 | C114: U | D114: 26 | F114: 26 | G114: 53.94 | H114: 1402.44 | I114: 2 | K114: 68 61 410
A115: ANALAC | B115: AB 147 | C115: U | D115: 18 | F115: 18 | G115: 56.32 | H115: 1013.76 | I115: 2 | K115: 68 61 412
A116: MAACBT | B116: ABT 34 | C116: U | D116: 308 | F116: 308 | G116: 12.48 | H116: 3843.84 | I116: 2 | K116: 68 61 350
A117: MAACBT | B117: ABT 38 | C117: U | F117: 0 | G117: 11.88 | H117: 0 | I117: 2 | K117: 68 61 352
A118: MAACBT | B118: ABT 54 | C118: U | D118: 113 | F118: 113 | G118: 11.88 | H118: 1342.44 | I118: 2 | K118: 68 61 352
A119: MAACBT | B119: ABT 60 | C119: U | F119: 0 | G119: 20.28 | H119: 0 | I119: 2 | K119: 68 61 354
A120: MAACBT | B120: ABT 75 | C120: U | D120: 59 | F120: 59 | G120: 20.28 | H120: 1196.52 | I120: 2 | K120: 68 61 354
A121: MAACBT | B121: ABT 117 | C121: U | D121: 208 | F121: 208 | G121: 36.75 | H121: 7644 | I121: 2 | K121: 68 61 356
A122: MAACBT | B122: ABT 148 | C122: U | D122: 62 | F122: 62 | G122: 23.26 | H122: 1442.12 | I122: 2 | K122: 68 61 358
A123: RAPASE | B123: RDB 34 | C123: U | D123: 63 | F123: 63 | G123: 16.39 | H123: 1032.57 | I123: 2 | K123: 67 21 301
A124: RAPASE | B124: RDB 54 | C124: U | D124: 22 | F124: 22 | G124: 16.11 | H124: 354.42 | I124: 2 | K124: 67 21 303
A125: RAPASE | B125: RDB 75 | C125: U | D125: 9 | F125: 9 | G125: 22.91 | H125: 206.19 | I125: 2 | K125: 67 21 305
A126: RAPASE | B126: RDB 117 | C126: U | D126: 15 | F126: 15 | G126: 27.04 | H126: 405.6 | I126: 2 | K126: 67 21 307
A127: RAPASE | B127: RDB 148 | C127: U | D127: 80 | F127: 80 | G127: 24.21 | H127: 1936.8 | I127: 2 | K127: 67 21 309
A128: MAJOAL | B128: Manchons de ligne J34 Almelec | C128: U | D128: 174 | F128: 174 | G128: 20.75 | H128: 3610.5 | I128: 2 | K128: 67 24 507
A129: MAJOAL | B129: Manchons de ligne J43 Almelec | C129: U | F129: 0 | G129: 6.32 | H129: 0 | I129: 2 | K129: 6724509
A130: MAJOAL | B130: Manchons de ligne J54 Almelec | C130: U | D130: 48 | F130: 48 | G130: 2.43 | H130: 116.64 | I130: 2 | K130: 67 24 513
A131: MAJOAL | B131: Manchons de ligne J75 Almelec | C131: U | D131: 39 | F131: 39 | G131: 4.85 | H131: 189.15 | I131: 2 | K131: 67 24 515
A132: MAJOAL | B132: Manchons de ligne J93 Almelec | C132: U | F132: 0 | G132: 10.59 | H132: 0 | I132: 2 | K132: 6724518
A133: MAJOAL | B133: Manchons de ligne J117 Almelec | C133: U | D133: 93 | F133: 93 | G133: 9.66 | H133: 898.38 | I133: 2 | K133: 67 24 522
A134: MAJOAL | B134: Manchons de ligne J148 Almelec | C134: U | D134: 31 | F134: 31 | G134: 9.74 | H134: 301.94 | I134: 2 | K134: 67 24 524
A135: MAJOAL | B135: Manchons de ligne MR 34 | C135: U | D135: 12 | F135: 12 | G135: 47.33 | H135: 567.96 | I135: 2 | K135: 67 22 151
A136: MAJOAL | B136: Manchons de ligne MR 54 | C136: U | D136: 4 | F136: 4 | G136: 43.75 | H136: 175 | I136: 2 | K136: 67 22 153
A137: JOALAC | B137: Manchons de ligne J34 AR | C137: U | D137: 174 | F137: 174 | G137: 1.76 | H137: 306.24 | I137: 2 | K137: 67 24 539
A138: JOALAC | B138: Manchons de ligne J38 ALR | C138: U | D138: 18 | F138: 18 | G138: 10.74 | H138: 193.32 | I138: 2 | K138: 67 24 538
A139: JOALAC | B139: Manchons de ligne J60 ALR | C139: U | D139: 85 | F139: 85 | G139: 21.22 | H139: 1803.7 | I139: 2 | K139: 67 24 543
A140: JOALAC | B140: Manchons de ligne J69 ALR | C140: U | D140: 12 | F140: 12 | G140: 21.22 | H140: 254.64 | I140: 2
A141: JOALAC | B141: Manchons de ligne J75 ALR | C141: U | D141: 12 | F141: 12 | G141: 31.5 | H141: 378 | I141: 2 | K141: 67 24 546
A142: JOALAC | B142: Manchons de ligne J80 AR | C142: U | D142: 12 | F142: 12 | G142: 36.32 | H142: 435.84 | I142: 2 | K142: 67 24 548
A143: JOALAC | B143: Manchons de ligne J88 AR | C143: U | D143: 6 | F143: 6 | G143: 24.28 | H143: 145.68 | I143: 2
A144: JOALAC | B144: Manchons de ligne J116 AR | C144: U | D144: 36 | F144: 36 | G144: 28.61 | H144: 1029.96 | I144: 2 | K144: 67 24 550
A145: JOALAC | B145: Manchons de ligne J147AR | C145: U | F145: 0 | G145: 29.02 | H145: 0 | I145: 2 | K145: 67 24 552
A146: JOALAC | B146: Manchons de ligne J147ALR | C146: U | D146: 39 | F146: 39 | G146: 29.02 | H146: 1131.78 | I146: 2 | K146: 67 24 554
A147: MAJOAL | B147: MACHON DE LIGNE MR 117 | C147: U | D147: 19 | F147: 19 | H147: 0 | I147: 2 | K147: 67 22 151
A148: MAJOAL | B148: MANCHON DE LIGNE MR 148 | C148: U | D148: 2 | F148: 2 | H148: 0 | I148: 2 | K148: 67 22 153
A149: ANALAC | B149: Manchon ancrage broche retcomp AB 38 LR | C149: U | D149: 140 | F149: 140 | H149: 0 | I149: 2 | K149: 68 61 374
A150: ADBRAN | B150: Adapt broch manc ancr 1 boul ADB1 | C150: U | D150: 22 | F150: 22 | H150: 0 | I150: 2 | K150: 68 61 470
A151: ADBRAN | B151: Adapt broch manc ancr 2 boul ADB2 | C151: U | D151: 31 | F151: =D151-E151 -> 31 | H151: 0 | I151: 2 | K151: 68 61 471
A153: Câbles BT
B154: Aérien
A155: CABTOR | B155: Cable Alu Tors SS port 2x25 cour 100M | C155: ML | D155: 50 | F155: =D155-E155 -> 50 | H155: =G155*F155 -> 0 | I155: 2 | K155: 61 25 074
A156: CABTOR | B156: T150 | C156: ML | F156: 0 | G156: 7.5 | H156: 0 | I156: 2
A157: CABTOR | B157: T150 + EP | C157: ML | F157: 0 | G157: 9.17 | H157: 0 | I157: 2
A158: CABTOR | B158: T70 | C158: ML | F158: 0 | G158: 4.1 | H158: 0 | I158: 2
A159: CABTOR | B159: T70 + EP | C159: ML | F159: 0 | G159: 6.62 | H159: 0 | I159: 2
A160: CABTOR | B160: T 2x25 + Télereport | C160: ML | F160: 0 | G160: 1.86 | H160: 0 | I160: 2
A161: CABTOR | B161: T 4x25 + Téléreport | C161: ML | F161: 0 | G161: 1.7 | H161: 0 | I161: 2
B162: Pinces pour câbles aériens
A163: PINSUS | B163: Pinces de suspension M300S | C163: U | D163: 18 | F163: 18 | G163: 11.25 | H163: 202.5 | I163: 2 | K163: 68 60 303
A164: PINSUS | B164: Pinces de suspension M300D | C164: U | F164: 0 | G164: 11.75 | H164: 0 | I164: 2 | K164: 68 60 453
A165: PIALAL | B165: Pinces alignement Alpax 75A228 Dervaux | C165: U | D165: 0 | F165: 0 | H165: 0 | I165: 2 | K165: 68 60 305
A166: PIACSI | B166: PAC 2000 | C166: U | F166: 0 | G166: 12.32 | H166: 0 | I166: 2 | K166: 6827110
A167: PISUBT | B167: EAS 1500 | C167: U | D167: 5 | F167: 5 | G167: 14.72 | H167: 73.6 | I167: 2 | K167: 68 25 030
A168: PIACSI | B168: EASC 1500 | C168: U | D168: 36 | F168: 36 | G168: 14.72 | H168: 529.92 | I168: 2 | K168: 68 25 032
A169: PIACSI | B169: EAS 2000 | C169: U | D169: 176 | F169: 176 | G169: 14.72 | H169: 2590.72 | I169: 2 | K169: 68 25 034
A170: PISUBT | B170: ES 2000 | C170: U | D170: 533 | F170: 533 | G170: 6.81 | H170: 3629.73 | I170: 2 | K170: 68 25 004
A171: PIACSI | B171: Pince de branchement- PA25 | C171: U | D171: 83 | F171: 83 | G171: 7.73 | H171: 641.59 | I171: 2 | K171: 68 28 501
A172: BOQUCO | B172: BQC 12x300 | C172: U | D172: 26 | F172: 26 | G172: 3.75 | H172: 97.5 | I172: 2 | K172: 68 27 239
A173: COSUPI | B173: Console de suspension C10 | C173: U | D173: 96 | F173: 96 | H173: 0 | I173: 2
B174: Accessoire de support
A175: FEUINO | B175: Dévidoir 50m feuillard inox 20x0,4 | C175: U | D175: 27 | F175: 27 | G175: 24.35 | H175: 657.45 | I175: 2 | K175: 68 39 644
A176: FEUINO | B176: Feuillard 20/07 (Rouleau) | C176: U | D176: 47 | F176: 47 | G176: 35.88 | H176: 1686.36 | I176: 2 | K176: 68 39 646
A177: FEUINO | B177: Dévidoir 50m feuillard inox 10x0,7 | C177: U | D177: 35 | F177: 35 | H177: 0 | I177: 2 | K177: 68 39 629
A178: FEUINO | B178: Dévidoir 50m feuillard inox 10x0,4 | C178: U | D178: 32 | F178: 32 | G178: 18.7 | H178: 598.4 | I178: 2 | K178: 68 39 628
A179: CHAINO | B179: CF 10 (Boite) | C179: Boite | D179: 12 | F179: 12 | G179: 9.88 | H179: 118.56 | I179: 2 | K179: 6839726
A180: CHAINO | B180: CF 20 (Boite) | C180: Boite | D180: 14 | F180: 14 | G180: 11.72 | H180: 164.08 | I180: 2 | K180: 68 39 724
B181: Accessoires
A182: COCABT | B182: BIC 50 90 | C182: U | D182: 230 | F182: 230 | G182: 2.01 | H182: 462.3 | I182: 2 | K182: 68 86 661
A183: COCABT | B183: BIC 30 50 | C183: U | D183: 250 | F183: 250 | G183: 0.55 | H183: 137.5 | I183: 2 | K183: 68 27 654
A184: COCABT | B184: BIC 15 30 | C184: U | D184: 600 | F184: 600 | G184: 0.51 | H184: 306 | I184: 2 | K184: 68 27 652
A185: BERFAC | B185: BRPF1 | C185: U | D185: 100 | F185: =D185-E185 -> 100 | G185: 0.59 | H185: =G185*F185 -> 59 | I185: 2 | K185: 6826001
A186: CABGAC | B186: EM 86 | C186: U | D186: 500 | F186: 500 | G186: 0.42 | H186: 210 | I186: 2 | K186: 68 86 680
B187: Souterrain
A188: CABSOU | B188: HN 2x35 Télereport | C188: ML | F188: =D188-E188 -> 0 | G188: 4.3 | H188: 0 | I188: 2
A189: CABSOU | B189: Telereport armé | C189: ML | F189: 0 | G189: 0.65 | H189: 0 | I189: 2
A190: CABSOU | B190: HN 3x35 + terre périphérique | C190: ML | F190: 0 | H190: 0 | I190: 2
A191: CABSOU | B191: HN 4x35 Alu | C191: ML | F191: 0 | G191: 4.22 | H191: 0 | I191: 2
A192: CABSOU | B192: HN 4x35 + Telereport | C192: ML | F192: 0 | G192: 5.2 | H192: 0 | I192: 2
A193: CABSOU | B193: HN 3x95+75 Alu | C193: ML | F193: 0 | G193: 7.58 | H193: 0 | I193: 2
A194: CABSOU | B194: HN 3x150+95 Alu | C194: ML | F194: 0 | G194: 13.2 | H194: 0 | I194: 2
A195: CABSOU | B195: HN 3x 240+95 Alu | C195: ML | F195: 0 | G195: 18.28 | H195: 0 | I195: 2
A196: CABSOU | B196: HN 3x 240+115 Alu | C196: ML | F196: 0 | G196: 18.28 | H196: 0 | I196: 2
A198: Câbles HTA
B199: Souterrain
A200: CABMOY | B200: C33 226 3x95 Alu | C200: ML | F200: =D200-E200 -> 0 | G200: 15.9 | H200: =G200*F200 -> 0 | I200: 2
A201: CABMOY | B201: C33 226 3x150 Alu | C201: ML | F201: 0 | G201: 17.9 | H201: 0 | I201: 2
A202: CABMOY | B202: C33 226 3x240 Alu | C202: ML | F202: 0 | G202: 23 | H202: 0 | I202: 2
B203: Terre
A204: CABTER | B204: Cab cu nu rec 25,2 mm² | C204: ML | D204: 1525 | F204: 1525 | G204: 1.8 | H204: 2745 | I204: 2 | K204: 59 10 151
A205: CABTER | B205: Cablette de terre 1x25 RO2V | C205: ML | D205: 1000 | F205: 1000 | G205: 2 | H205: 2000 | I205: 2
A206: PIQMAL | B206: Piquet de terre galva | C206: U | D206: 130 | F206: 130 | G206: 3.888 | H206: 505.44 | I206: 2
A207: PIMAAC | B207: Piquet de Terre acier inoxlong 16-1 | C207: U | D207: 1 | F207: 1 | H207: 0 | I207: 2 | K207: 59 80 195
A208: PIMACU | B208: Piquet de terre cuivre | C208: U | D208: 15 | F208: 15 | G208: 3.888 | H208: 58.32 | I208: 2
... 215 more rows

Sheet colonnes
B1: SARE / St Auban Local Colonnes
A4: Stock : | B4: 2018-01-03
A6: Total
A7: =SUMIF(I8:I446,6,H8:H446) -> 51226.816
B9: LOCAL Colonnes | G9: - | H9: 51226.816 | I9: - | K9: -
A10: COMMON | B10: Compteurs Mono | F10: 0 | G10: 0 | H10: 0 | I10: 6
A11: COMTRI | B11: Compteurs Tri sagem com | F11: 0 | G11: 0 | H11: 0 | I11: 6 | K11: 40 73 138
A12: COTRLA | B12: compteurs tri landis | F12: 0 | G12: 0 | H12: 0 | I12: 6 | K12: 69 81 155
A13: PLMODO | B13: Platine de comptage Mono double | F13: 0 | G13: 28 | H13: 0 | I13: 6
A14: PACOMO | B14: Panneau de controle Mono | D14: 36 | F14: 36 | G14: 11.5 | H14: 414 | I14: 6 | K14: 69 81 291
A15: PACOTR | B15: Panneau de controle Tri | D15: 43 | F15: 43 | G15: 24.3 | H15: 1044.9 | I15: 6 | K15: 69 81 220
A16: BANETR | B16: Barette neutre couteau T00 | D16: 510 | F16: 510 | G16: 2.88 | H16: 1468.8 | I16: 6 | K16: 69 43 512
A17: CAFU30 | B17: Cartouche fusible T00 AD 30 | D17: 243 | F17: 243 | G17: 4.51 | H17: 1095.93 | I17: 6 | K17: 69 43 516
A18: CAF45 | B18: Cartouche fusible T00 AD 45 | D18: 50 | F18: 50 | G18: 4.51 | H18: 225.5 | I18: 6 | K18: 69 43 514
A19: CAFU60 | B19: Cartouche fusible T00 AD 60 | D19: 4 | F19: 4 | G19: 0.6 | H19: 2.4 | I19: 6 | K19: 69 43 513
A20: CAFU90 | B20: Cartouche fusible T00 AD 90 | D20: 4 | F20: 4 | G20: 0.6 | H20: 2.4 | I20: 6
A21: BAPHPA | B21: Base 22x58 phase avec pattes (CCPI avec pattes) | D21: 870 | F21: 870 | G21: 4.22 | H21: 3671.4 | I21: 6 | K21: 69 40 508
A22: CCNE60 | B22: CCPI Neutre 60A (CCPI pattes neutre) | D22: 36 | F22: 36 | G22: 14.23 | H22: 512.28 | I22: 6 | K22: 69 40 538
A23: CCPNEU | B23: CCPI neutre | F23: 0 | G23: 5.96 | H23: 0 | I23: 6 | K23: 69 40 408
A24: CNTRSE | B24: CCPI neutre Triple sectionnable | D24: 150 | F24: 150 | G24: 24.47 | H24: 3670.5 | I24: 6 | K24: 69 40 411
A25: ENMO60 | B25: Ensemble monophasé 60A (CCPI avec câblette) | F25: 0 | G25: 14.23 | H25: 0 | I25: 6 | K25: 69 40 521
A26: ENTR60 | B26: Ensemble triphasé 60A avec câblette (CCPI avec câblette) | D26: 92 | F26: 92 | G26: 28.45 | H26: 2617.4 | I26: 6 | K26: 69 40 523
A27: CPFHUN | B27: CPF Phase uniquement | F27: 0 | G27: 5.96 | H27: 0 | I27: 6
A28: CPFMON | B28: CPF mono Seifel | F28: 0 | G28: 17.84 | H28: 0 | I28: 6 | K28: 69 40 524
A29: CPFTRI | B29: CPF Tri Seifel | D29: 129 | F29: 129 | G29: 35.25 | H29: 4547.25 | I29: 6 | K29: 69 40 525
A30: CPFMON | B30: CPF mono Michaud | D30: 140 | F30: 140 | G30: 13.96 | H30: 1954.4 | I30: 6 | K30: 69 40 524
A31: CPFTRI | B31: CPF Tri Michaud | F31: 0 | G31: 27.9 | H31: 0 | I31: 6 | K31: 69 40 525
A32: DINI6D | B32: Distributeur de niveau 200A 6 Départs HN 62-S-35 | F32: 0 | G32: 63 | H32: 0 | I32: 6 | K32: 69 02 476
A33: DIET6D | B33: Distributeur d'étage 200A 6 Départs HN 62-S-35 | F33: 0 | G33: 63 | H33: 0 | I33: 6 | K33: 69 02 424
A34: DI200A | B34: Distributeur 200A S35 CPF | D34: 4 | F34: 4 | G34: 64 | H34: 256 | I34: 6 | K34: 69 02 428
A35: DM1545 | B35: Disjoncteur Mono 15/45A Selectif | D35: 257 | F35: 257 | G35: 20 | H35: 5140 | I35: 6 | K35: 69 30 061
A36: DT1030 | B36: Disjoncteur Tri 10/30A Selectif | D36: 116 | F36: 116 | G36: 41 | H36: 4756 | I36: 6 | K36: 69 30 066
A37: KIADPR | B37: Kit d'adaptation Production | D37: 21 | F37: 21 | G37: 20.4 | H37: 428.4 | I37: 6 | K37: 69 81 276
A38: DICO4D | B38: Dispositif de connection 4 Directions | D38: 166 | F38: 166 | G38: 17.2 | H38: 2855.2 | I38: 6 | K38: 44 49 074
A39: BOTEG2 | B39: Boitier Téléreport génération 2 Ivoir | D39: 18 | F39: 18 | G39: 11.24 | H39: 202.32 | I39: 6 | K39: 44 49 007
A40: CC16BL | B40: Câble Unifilaire 16² Cu Rigide Bleu | D40: 86 | F40: 86 | G40: 1.12 | H40: 96.32 | I40: 6
A41: CC16NO | B41: Câble Unifilaire 16² Cu Rigide Noir | D41: 30 | F41: 30 | G41: 1.12 | H41: 33.6 | I41: 6
A42: CATEIV | B42: Câble téléreport Ivoir | F42: 0 | G42: 0.19 | H42: 0 | I42: 6 | K42: 69 80 075
A43: CC10RO | B43: Câble Unifilaire 10² Cu Rouge | D43: 2500 | F43: 2500 | G43: 0.779 | H43: 1947.5 | I43: 6 | K43: 22 57 6181
A44: CC10BL | B44: Câble Unifilaire 10² Cu Bleu | D44: 20 | F44: 20 | G44: 0.779 | H44: 15.58 | I44: 6 | K44: 22576180
A45: FC16BL | B45: Flamèche étamées 16² Cu Bleu | D45: 40 | F45: 40 | G45: 2.7 | H45: 108 | I45: 6 | K45: 69 80 074
A46: FC16NO | B46: Flamèche étamées 16² Cu Noir | D46: 110 | F46: 110 | G46: 2.7 | H46: 297 | I46: 6 | K46: 68 80 075
A47: RADITR | B47: rallonge di tri | D47: 6 | F47: 6 | G47: 81.3 | H47: 487.8 | I47: 6 | K47: 69 40 529
A48: RADIMO | B48: rallonge di mono | D48: 16 | F48: 16 | G48: 42.5 | H48: 680 | I48: 6 | K48: 69 40 528
A49: ADCAFU | B49: Adaptateur cartouche 14x51 | D49: 407 | F49: 407 | G49: 6.15 | H49: 2503.05 | I49: 6 | K49: 69 41 165
A50: FUAD30 | B50: Fusibles AD 22x58 30A | D50: 716 | F50: 716 | G50: 1.58 | H50: 1131.28 | I50: 6 | K50: 69 42 626
A51: FUAD45 | B51: fus ad 22x58 45A | D51: 232 | F51: 232 | G51: 0.6 | H51: 139.2 | I51: 6 | K51: 69 42 634
A52: FUAD60 | B52: Fusibles AD 22x58 60A | D52: 515 | F52: 515 | G52: 0.6 | H52: 309 | I52: 6 | K52: 69 42 638
A53: CN2258 | B53: cartouche neutre AD 22x58 | D53: 1000 | F53: 1000 | G53: 1.05 | H53: 1050 | I53: 6 | K53: 69 42 669
A54: FU1451 | B54: Fusible AD 14x51 30A | D54: 470 | F54: 470 | G54: 0.6 | H54: 282 | I54: 6 | K54: 69 42 617
A55: CN1451 | B55: cartouche neutre 14x51 | D55: 630 | F55: 630 | G55: 0.45 | H55: 283.5 | I55: 6 | K55: 69 42 664
A56: ETIREP | B56: etiquettes reperage | D56: 3903 | F56: 3903 | G56: 0.282 | H56: 1100.646 | I56: 6 | K56: 67 71 099
A57: COTYTR | B57: Coffret S20 Type 2 triphasé | D57: 27 | F57: 27 | G57: 49 | H57: 1323 | I57: 6 | K57: 69 80 327
A58: RAIFIX | B58: Rail de fixation | D58: 72 | F58: 72 | G58: 1.88 | H58: 135.36 | I58: 6
A59: PMTEMO | B59: Panneau mono/tri équipé mono | D59: 6 | F59: 6 | G59: 56.1 | H59: 336.6 | I59: 6 | K59: 69 80 132
A60: PCDICC | B60: Panneau 250 x 500 CBEMM + Disj + C/C | F60: 0 | G60: 74.53 | H60: 0 | I60: 6 | K60: 69 81 210
A61: PCT2NG | B61: Cibe Platine type 2 Nouvelle génération | F61: 0 | G61: 95.65 | H61: 0 | I61: 6 | K61: 69 80 836
A62: GRRECI | B62: Grille de repiquage cibe 3x35 | D62: 74 | F62: 74 | G62: 41.85 | H62: 3096.9 | I62: 6 | K62: 69 80 818
A63: GOUAPI | B63: Goulotte API | D63: 100 | F63: 100 | G63: 3.1 | H63: 310 | I63: 6 | K63: 69 10 154
A64: COUGOU | B64: Coudes 40x60 pour goulottes (sachet de 2) | D64: 112 | F64: 112 | G64: 5.6 | H64: 627.2 | I64: 6 | K64: 69 02 600
A65: EMBGOU | B65: Embout 40x60 pour goulottes (sachet de 10) | D65: 11 | F65: 11 | G65: 6.2 | H65: 68.2 | I65: 6

Sheet EP
B1: SARE / St Auban Local EP
A4: Stock : | B4: 2018-01-03
A6: Total
A7: Cat 2 | B7: =SUMIF(I10:I428,4,H10:H428) -> 26220.4
A9: Ref Magasin | B9: Articles | C9: Unité | D9: Entrée | E9: Sortie | F9: Q | G9: PU | H9: TOTAL HT | I9: Cat. | J9: Seuil critique | K9: Réf. Fourn.
A10: Mats et massifs
A11: MÂTCYL | B11: Mât cylindro-conique H=4m | C11: U | F11: 100 | G11: 148 | H11: =G11*F11 -> 14800 | I11: 4 | L11: =D11 -> 0
A12: MÂTCYL | B12: Mât cylindro-conique H=5m | C12: U | F12: 0 | G12: 168 | H12: =G12*F12 -> 0 | I12: 4
A13: MATCYL | B13: Mât cylindro-conique H=7m + lanterne et crosse | C13: U | F13: 7 | G13: 1402 | H13: 9814 | I13: 4
A14: MATCYL | B14: Mät Cylindro-conique 10m acier galva | F14: 0 | G14: 411 | H14: 0 | I14: 4
A15: MASCAN | B15: Massifs candélabres 200x200 | F15: 3 | G15: 45 | H15: 135 | I15: 4
A16: MASCAN | B16: Massifs candélabres 300x300 | F16: 8 | G16: 90 | H16: 720 | I16: 4
A18: Protections
A19: COMIEP | B19: Coffret mini EP | F19: 0 | G19: 18.5 | H19: =G19*F19 -> 0 | I19: 4
A20: MICOBO | B20: Minicobox | F20: 0 | G20: 32.56 | H20: 0 | I20: 4
A21: MECOBO | B21: Mediumcobox | F21: 0 | G21: 20 | H21: 0 | I21: 4
A22: FACCOB | B22: Façadecobox | F22: 10 | G22: 7.5 | H22: 75 | I22: 4
A24: Appareillage
A25: CRO3EP | B25: Crosse 3 EP | F25: 0 | G25: 839 | H25: =G25*F25 -> 0 | I25: 4
A26: LAROLA | B26: Lanternes routiere 100w+ LAMPE | F26: 5 | G26: 135.28 | H26: 676.4 | I26: 4
F50: 0

Sheet Frejus
B1: SARE / St Auban Local Frejus
A4: Date : | B4: 2018-01-03
A6: Total
A7: =SUMIF(I12:I587,2,H12:H587) -> 9300.85
A10: Ref Magasin | B10: Articles | C10: Unité | D10: Entrée | E10: Sorti | F10: Q | G10: PU | H10: TOTAL HT | I10: Cat. | J10: Seuil critique | K10: Réf Fourn.
A11: Câbles
A12: CABASG | B12: Cable Pont Isolar 54 | D12: 400 | F12: =D12-E12 -> 400 | H12: =G12*F12 -> 0 | I12: 2
A13: CABASG | B13: Cable Pont Isolar 148 | D13: 200 | F13: =D13-E13 -> 200 | H13: =G13*F13 -> 0 | I13: 2
A15: Connecteurs
A16: RABRIS | B16: CB0G 54,6 | D16: 90 | F16: =D16-E16 -> 90 | G16: 10.93 | H16: =G16*F16 -> 983.7 | I16: 2
A17: COLGAL | B17: CNU 200 | D17: 33 | F17: 33 | H17: 0 | I17: 2
A18: COLGAL | B18: CNU 180 | D18: 13 | F18: 13 | H18: 0 | I18: 2
A19: COLGAL | B19: CNU 220 | D19: 14 | F19: 14 | H19: 0 | I19: 2
A20: MAACBT | B20: ABT 34 | D20: 204 | F20: 204 | G20: 12.48 | H20: 2545.92 | I20: 2
A21: MAACBT | B21: ABT 54 | D21: 51 | F21: 51 | G21: 11.88 | H21: 605.88 | I21: 2
A22: FIISVE | B22: Malicol 20/22 | D22: 69 | F22: 69 | G22: 18.95 | H22: 1307.55 | I22: 2
A24: Boulonnerie
A25: BOUGLA | B25: BH 14/50 | D25: 250 | F25: =D25-E25 -> 250 | H25: =G25*F25 -> 0 | I25: 2
A26: BOUGLA | B26: BH 14/100 | D26: 200 | F26: 200 | H26: 0 | I26: 2
A27: TIGFIL | B27: BH 14/150 | D27: 8 | F27: 8 | H27: 0 | I27: 2
A28: TIGFIL | B28: BH 14/200 | D28: 60 | F28: 60 | H28: 0 | I28: 2
A29: TIGFIL | B29: BH 14/250 | D29: 42 | F29: 42 | H29: 0 | I29: 2
A30: TIGFIL | B30: BH 14/300 | D30: 15 | F30: 15 | H30: 0 | I30: 2
A32: Armement
A33: ARMSUP | B33: VR1 | D33: 5 | F33: =D33-E33 -> 5 | G33: 121.91 | H33: =G33*F33 -> 609.55 | I33: 2
A34: ARMSUP | B34: NV1 | D34: 1 | F34: 1 | G34: 252.69 | H34: 252.69 | I34: 2
A36: Hauban
A37: COHAGA | B37: Collier Hauban | D37: 3 | F37: =D37-E37 -> 3 | H37: =G37*F37 -> 0 | I37: 2
A38: TIANHA | B38: Tige hauban | D38: 5 | F38: 5 | G38: 34.74 | H38: 173.7 | I38: 2
A39: CAACGA | B39: Cable Hauban 19/20 | D39: 50 | F39: 50 | H39: 0 | I39: 2
A41: Parafoudre
A42: FERPAR | B42: Ferrure parafoudre | D42: 10 | F42: =D42-E42 -> 10 | G42: 160.74 | H42: =G42*F42 -> 1607.4 | I42: 2
A43: PAISSY | B43: Parafoudre | D43: 6 | F43: 6 | H43: 0 | I43: 2
A44: SUPISO | B44: Iso synthétique | D44: 27 | F44: 27 | H44: 0 | I44: 2
A46: Disjoncteur de poteau
A47: CODIBP | B47: Coffret disjoncteur | D47: 2 | F47: =D47-E47 -> 2 | H47: =G47*F47 -> 0 | I47: 2
A48: BLODIJ | B48: Bloc disjoncteur | D48: 3 | F48: 3 | H48: 0 | I48: 2
A49: PRTRGR | B49: Protection terre grise | D49: 10 | F49: =D49-E49 -> 10 | H49: =G49*F49 -> 0 | I49: 2
A51: Isolateurs
A52: ISOVER | B52: VHT 20 | D52: 27 | F52: =D52-E52 -> 27 | G52: 14.98 | H52: =G52*F52 -> 404.46 | I52: 2
A53: ISOVER | B53: 1508 | D53: 15 | F53: =D53-E53 -> 15 | H53: =G53*F53 -> 0 | I53: 2
A55: Divers
A56: BALCHA | B56: BO | D56: 63 | F56: =D56-E56 -> 63 | H56: =G56*F56 -> 0 | I56: 2
A57: COAVRO | B57: Lien rouge | D57: 135 | F57: =D57-E57 -> 135 | G57: 6 | H57: 810 | I57: 2
